[Event "Early-Titled-Tuesday-Blitz-December-26-2023"]
[Site "Chess.com"]
[Date "2023.12.26"]
[Round "3"]
[White "UK_23"]
[Black "rquery98"]
[Result "0-1"]
[WhiteElo "2334"]
[BlackElo "2742"]
[TimeControl "180+1"]
[EndTime "8:27:43 PST"]
[Termination "rquery98 won by resignation"]

1. e4 {[%clk 0:02:59.4]} 1... e5 {[%clk 0:02:59.9]} 2. Nf3 {[%clk 0:02:59.4]}
2... Nc6 {[%clk 0:03:00.5]} 3. d4 {[%clk 0:02:59.8]} 3... exd4 {[%clk
0:03:00.6]} 4. Nxd4 {[%clk 0:03:00.7]} 4... Nf6 {[%clk 0:03:00.8]} 5. Nxc6
{[%clk 0:02:59.9]} 5... bxc6 {[%clk 0:03:01.7]} 6. Bd3 {[%clk 0:02:58.6]} 6...
d5 {[%clk 0:03:00.3]} 7. exd5 {[%clk 0:02:57.9]} 7... cxd5 {[%clk 0:03:01.2]} 8.
Nd2 {[%clk 0:02:57.9]} 8... Be7 {[%clk 0:02:59.8]} 9. O-O {[%clk 0:02:57.9]}
9... O-O {[%clk 0:03:00.4]} 10. c4 {[%clk 0:02:56.8]} 10... Bg4 {[%clk
0:02:45.4]} 11. Qc2 {[%clk 0:02:54]} 11... c6 {[%clk 0:02:35.5]} 12. b3 {[%clk
0:02:51.3]} 12... h5 {[%clk 0:02:24.5]} 13. Bb2 {[%clk 0:02:50.5]} 13... h4
{[%clk 0:02:24.7]} 14. h3 {[%clk 0:02:50.7]} 14... Be6 {[%clk 0:02:24.5]} 15.
Rfe1 {[%clk 0:02:49.6]} 15... Qd7 {[%clk 0:02:23.4]} 16. Nf3 {[%clk 0:02:38.8]}
16... Nh5 {[%clk 0:01:58.1]} 17. Rad1 {[%clk 0:02:31.1]} 17... Nf4 {[%clk
0:01:30.5]} 18. Bf1 {[%clk 0:02:30.4]} 18... Ng6 {[%clk 0:01:04.8]} 19. Nd4
{[%clk 0:02:19.9]} 19... Nf4 {[%clk 0:00:48.4]} 20. Nxe6 {[%clk 0:02:08.3]}
20... Nxe6 {[%clk 0:00:40.5]} 21. cxd5 {[%clk 0:01:57.8]} 21... cxd5 {[%clk
0:00:41.4]} 22. Bc4 {[%clk 0:01:58.1]} 22... Nf4 {[%clk 0:00:30.4]} 23. Be5
{[%clk 0:01:48]} 23... Ng6 {[%clk 0:00:20.6]} 24. Rxd5 {[%clk 0:01:43.3]} 24...
Qb7 {[%clk 0:00:17.9]} 25. Bh2 {[%clk 0:01:34.1]} 25... Qb6 {[%clk 0:00:07.5]}
26. Red1 {[%clk 0:01:30.5]} 26... Qf6 {[%clk 0:00:07.5]} 27. Rf5 {[%clk
0:01:28.2]} 27... Qb6 {[%clk 0:00:08]} 28. Qe4 {[%clk 0:01:18.9]} 28... Rae8
{[%clk 0:00:08]} 29. Qg4 {[%clk 0:01:18.8]} 29... Bc5 {[%clk 0:00:07.5]} 30.
Rxc5 {[%clk 0:01:05.8]} 30... Qxc5 {[%clk 0:00:07.3]} 31. Bd6 {[%clk 0:01:06.5]}
31... Qc6 {[%clk 0:00:05.9]} 32. Bxf8 {[%clk 0:00:36.7]} 32... Kxf8 {[%clk
0:00:06.6]} 33. Qh5 {[%clk 0:00:32.5]} 33... Qf6 {[%clk 0:00:06.3]} 34. Qc5+
{[%clk 0:00:29.2]} 34... Kg8 {[%clk 0:00:06.3]} 35. a4 {[%clk 0:00:25.9]} 35...
Nf4 {[%clk 0:00:06.5]} 36. Qc7 {[%clk 0:00:20.6]} 36... Rf8 {[%clk 0:00:05.5]}
37. Qd6 {[%clk 0:00:17.4]} 37... Qg5 {[%clk 0:00:05.8]} 38. Bf1 {[%clk
0:00:15.7]} 38... Nxh3+ {[%clk 0:00:06.2]} 39. Kh2 {[%clk 0:00:16.3]} 39... Nxf2
{[%clk 0:00:06.8]} 40. Rd5 {[%clk 0:00:15.8]} 40... Ng4+ {[%clk 0:00:07.1]} 41.
Kg1 {[%clk 0:00:15.5]} 41... Qe3+ {[%clk 0:00:07.5]} 42. Kh1 {[%clk 0:00:15.3]}
42... Qf2 {[%clk 0:00:07.8]} 43. Bc4 {[%clk 0:00:14.6]} 43... Qe1+ {[%clk
0:00:07.4]} 0-1

[Event "Early-Titled-Tuesday-Blitz-December-26-2023"]
[Site "Chess.com"]
[Date "2023.12.26"]
[Round "3"]
[White "Karacsonyi_Gellert"]
[Black "BogdanDeac"]
[Result "0-1"]
[WhiteElo "2734"]
[BlackElo "3007"]
[TimeControl "180+1"]
[EndTime "8:27:49 PST"]
[Termination "BogdanDeac won by resignation"]

1. e4 {[%clk 0:03:00.9]} 1... c5 {[%clk 0:03:00.1]} 2. Nf3 {[%clk 0:03:01.3]}
2... e6 {[%clk 0:02:59.9]} 3. d4 {[%clk 0:03:01.8]} 3... cxd4 {[%clk 0:03:00.8]}
4. Nxd4 {[%clk 0:03:02.3]} 4... a6 {[%clk 0:03:01]} 5. c4 {[%clk 0:03:02.2]}
5... Nf6 {[%clk 0:02:59.6]} 6. Nc3 {[%clk 0:03:02.2]} 6... Bb4 {[%clk 0:03:00]}
7. Qd3 {[%clk 0:02:56.1]} 7... Qc7 {[%clk 0:03:00]} 8. Be2 {[%clk 0:02:54.2]}
8... Nc6 {[%clk 0:02:59.3]} 9. Nxc6 {[%clk 0:02:52.9]} 9... dxc6 {[%clk
0:03:00.2]} 10. O-O {[%clk 0:02:48.1]} 10... O-O {[%clk 0:02:59.9]} 11. f3
{[%clk 0:02:40.3]} 11... Bc5+ {[%clk 0:02:49.9]} 12. Kh1 {[%clk 0:02:39.6]}
12... Rd8 {[%clk 0:02:50.2]} 13. Qc2 {[%clk 0:02:39.7]} 13... Bd4 {[%clk
0:02:50.5]} 14. b3 {[%clk 0:02:24.9]} 14... e5 {[%clk 0:02:37.6]} 15. Bb2 {[%clk
0:02:22.2]} 15... Nh5 {[%clk 0:02:37.5]} 16. Rfd1 {[%clk 0:02:13.6]} 16... Qd6
{[%clk 0:02:23.7]} 17. g4 {[%clk 0:01:44.2]} 17... Nf4 {[%clk 0:02:18.7]} 18.
Na4 {[%clk 0:01:39.6]} 18... h5 {[%clk 0:01:59.4]} 19. g5 {[%clk 0:01:08.9]}
19... Qe7 {[%clk 0:01:36.9]} 20. Bxd4 {[%clk 0:01:06.4]} 20... exd4 {[%clk
0:01:33.7]} 21. Bd3 {[%clk 0:00:59.7]} 21... Qxg5 {[%clk 0:01:29]} 22. Rg1
{[%clk 0:00:57.2]} 22... Qe5 {[%clk 0:01:26.7]} 23. c5 {[%clk 0:00:49.3]} 23...
Be6 {[%clk 0:01:23.7]} 24. Rad1 {[%clk 0:00:43.8]} 24... Qf6 {[%clk 0:01:19.9]}
25. Qd2 {[%clk 0:00:38.3]} 25... Nh3 {[%clk 0:01:10.2]} 26. Qg2 {[%clk
0:00:36.5]} 26... g6 {[%clk 0:00:35.5]} 27. Qg3 {[%clk 0:00:33.7]} 27... h4
{[%clk 0:00:32.9]} 28. Qg2 {[%clk 0:00:31.3]} 28... Nxg1 {[%clk 0:00:29.6]} 29.
Rxg1 {[%clk 0:00:30.6]} 29... Qf4 {[%clk 0:00:29.9]} 30. Nb6 {[%clk 0:00:25.2]}
30... Rab8 {[%clk 0:00:29.4]} 31. e5 {[%clk 0:00:24.2]} 31... Kh8 {[%clk
0:00:25.5]} 32. Qf2 {[%clk 0:00:14.3]} 32... Rg8 {[%clk 0:00:22.6]} 33. Nc4
{[%clk 0:00:13.9]} 33... Bd5 {[%clk 0:00:15.6]} 34. Nd2 {[%clk 0:00:10.6]} 34...
g5 {[%clk 0:00:13.9]} 35. Rg4 {[%clk 0:00:07.3]} 35... Qxg4 {[%clk 0:00:13.3]}
36. Be4 {[%clk 0:00:06.7]} 36... Qf4 {[%clk 0:00:11.2]} 37. Bxd5 {[%clk
0:00:05.6]} 37... cxd5 {[%clk 0:00:11.5]} 38. h3 {[%clk 0:00:04]} 38... Qe3
{[%clk 0:00:10.6]} 0-1

[Event "Early-Titled-Tuesday-Blitz-December-26-2023"]
[Site "Chess.com"]
[Date "2023.12.26"]
[Round "3"]
[White "NoHeThTo"]
[Black "AjedrezInteligente"]
[Result "0-1"]
[WhiteElo "2665"]
[BlackElo "2521"]
[TimeControl "180+1"]
[EndTime "8:27:50 PST"]
[Termination "AjedrezInteligente won by resignation"]

1. d4 {[%clk 0:03:00.9]} 1... Nf6 {[%clk 0:02:59.4]} 2. Nc3 {[%clk 0:03:01.2]}
2... d5 {[%clk 0:02:59.3]} 3. Bf4 {[%clk 0:03:01.5]} 3... c6 {[%clk 0:02:59.2]}
4. e3 {[%clk 0:03:00.3]} 4... Bf5 {[%clk 0:02:58.7]} 5. f3 {[%clk 0:02:59.4]}
5... e6 {[%clk 0:02:55.4]} 6. g4 {[%clk 0:02:59.4]} 6... Bg6 {[%clk 0:02:55.4]}
7. h4 {[%clk 0:03:00.1]} 7... h5 {[%clk 0:02:54.9]} 8. g5 {[%clk 0:02:47.2]}
8... Nfd7 {[%clk 0:02:54.8]} 9. Bd3 {[%clk 0:02:37.1]} 9... Bxd3 {[%clk
0:02:53.2]} 10. Qxd3 {[%clk 0:02:38]} 10... g6 {[%clk 0:02:53.8]} 11. Nge2
{[%clk 0:02:25.5]} 11... Qe7 {[%clk 0:02:52.6]} 12. e4 {[%clk 0:02:25]} 12...
Bg7 {[%clk 0:02:51.4]} 13. O-O-O {[%clk 0:02:10.5]} 13... O-O {[%clk 0:02:51.6]}
14. Ng3 {[%clk 0:02:09.1]} 14... dxe4 {[%clk 0:02:42.2]} 15. fxe4 {[%clk
0:02:01.2]} 15... e5 {[%clk 0:02:42.1]} 16. dxe5 {[%clk 0:01:56.9]} 16... Nxe5
{[%clk 0:02:42]} 17. Qe2 {[%clk 0:01:57]} 17... Nbd7 {[%clk 0:02:38.6]} 18. Rhf1
{[%clk 0:01:46.3]} 18... Nb6 {[%clk 0:02:34.1]} 19. Be3 {[%clk 0:01:40.9]} 19...
Rad8 {[%clk 0:02:26.8]} 20. Rxd8 {[%clk 0:01:29.3]} 20... Rxd8 {[%clk
0:02:25.5]} 21. Rd1 {[%clk 0:01:29.9]} 21... Nec4 {[%clk 0:02:23.2]} 22. Bxb6
{[%clk 0:01:26.4]} 22... Rxd1+ {[%clk 0:02:14.8]} 23. Qxd1 {[%clk 0:01:22.3]}
23... Bxc3 {[%clk 0:02:06.5]} 24. Bd4 {[%clk 0:00:53.7]} 24... Nxb2 {[%clk
0:01:46.3]} 25. Qg1 {[%clk 0:00:47.2]} 25... Qa3 {[%clk 0:01:38.1]} 26. Bxc3
{[%clk 0:00:33.9]} 26... Nc4+ {[%clk 0:01:36.9]} 27. Kd1 {[%clk 0:00:32.3]}
27... Qxc3 {[%clk 0:01:36.8]} 28. Qf2 {[%clk 0:00:31.6]} 28... Ne3+ {[%clk
0:01:31]} 29. Kc1 {[%clk 0:00:28.8]} 29... Nc4 {[%clk 0:01:27.3]} 30. Kd1 {[%clk
0:00:27.4]} 30... a5 {[%clk 0:01:25.8]} 31. Nf1 {[%clk 0:00:22]} 31... Nb2+
{[%clk 0:01:07.3]} 32. Ke2 {[%clk 0:00:21.7]} 32... Qxc2+ {[%clk 0:01:07.5]} 33.
Kf3 {[%clk 0:00:21.6]} 33... Qxf2+ {[%clk 0:01:04.8]} 34. Kxf2 {[%clk
0:00:22.5]} 34... Nd3+ {[%clk 0:01:02.8]} 35. Ke3 {[%clk 0:00:14.8]} 35... Nb4
{[%clk 0:01:02.9]} 36. a4 {[%clk 0:00:14.4]} 36... b5 {[%clk 0:01:02.9]} 37.
axb5 {[%clk 0:00:14.9]} 37... cxb5 {[%clk 0:01:03.8]} 38. Kd4 {[%clk 0:00:15.4]}
38... Na6 {[%clk 0:01:02.8]} 39. Ne3 {[%clk 0:00:14.9]} 39... Kf8 {[%clk
0:01:02.5]} 40. Nd5 {[%clk 0:00:15.2]} 40... a4 {[%clk 0:01:00.3]} 41. Nc3
{[%clk 0:00:14.4]} 41... a3 {[%clk 0:00:55.5]} 42. Na2 {[%clk 0:00:13.4]} 42...
b4 {[%clk 0:00:54.5]} 43. Kc4 {[%clk 0:00:13.8]} 43... Ke7 {[%clk 0:00:54.6]}
44. Nc1 {[%clk 0:00:13.7]} 44... Ke6 {[%clk 0:00:54.4]} 45. Kb3 {[%clk
0:00:13.5]} 45... Ke5 {[%clk 0:00:54.6]} 46. Nd3+ {[%clk 0:00:13.6]} 46... Kxe4
{[%clk 0:00:54.9]} 47. Nc1 {[%clk 0:00:12.8]} 47... Kf4 {[%clk 0:00:55.2]} 48.
Nd3+ {[%clk 0:00:12.8]} 48... Kg4 {[%clk 0:00:55.5]} 49. Ne5+ {[%clk 0:00:13.2]}
49... Kxh4 {[%clk 0:00:55.3]} 50. Nxf7 {[%clk 0:00:13.6]} 50... Nc5+ {[%clk
0:00:54.1]} 51. Ka2 {[%clk 0:00:14]} 51... Ne4 {[%clk 0:00:52.4]} 52. Kb3 {[%clk
0:00:14.3]} 52... Nc3 {[%clk 0:00:51.8]} 53. Kc2 {[%clk 0:00:14]} 53... a2
{[%clk 0:00:51.6]} 54. Kb2 {[%clk 0:00:14.4]} 54... b3 {[%clk 0:00:51.3]} 55.
Ka1 {[%clk 0:00:14.3]} 55... Nd5 {[%clk 0:00:48.5]} 56. Ne5 {[%clk 0:00:13.6]}
56... Kxg5 {[%clk 0:00:46.6]} 57. Nf3+ {[%clk 0:00:13.9]} 57... Kf4 {[%clk
0:00:46.5]} 58. Nd4 {[%clk 0:00:14.2]} 58... Ne3 {[%clk 0:00:47]} 59. Ne6+
{[%clk 0:00:12]} 59... Kg4 {[%clk 0:00:46.5]} 60. Kb2 {[%clk 0:00:10.8]} 60...
Nc2 {[%clk 0:00:46]} 0-1

[Event "Early-Titled-Tuesday-Blitz-December-26-2023"]
[Site "Chess.com"]
[Date "2023.12.26"]
[Round "3"]
[White "Mikhail_Golubev"]
[Black "thechesscorner64"]
[Result "1/2-1/2"]
[WhiteElo "2614"]
[BlackElo "2437"]
[TimeControl "180+1"]
[EndTime "8:27:52 PST"]
[Termination "Game drawn by repetition"]

1. e4 {[%clk 0:03:00.9]} 1... c5 {[%clk 0:02:56.6]} 2. Nf3 {[%clk 0:03:00]} 2...
e6 {[%clk 0:02:56.8]} 3. d4 {[%clk 0:02:59.1]} 3... cxd4 {[%clk 0:02:55.8]} 4.
Nxd4 {[%clk 0:03:00]} 4... a6 {[%clk 0:02:55.6]} 5. Bd3 {[%clk 0:03:00.1]} 5...
Nc6 {[%clk 0:02:55.2]} 6. Nxc6 {[%clk 0:02:58.5]} 6... dxc6 {[%clk 0:02:55.6]}
7. Nd2 {[%clk 0:02:55]} 7... e5 {[%clk 0:02:54.4]} 8. Nc4 {[%clk 0:02:48]} 8...
Nf6 {[%clk 0:02:54.3]} 9. O-O {[%clk 0:02:39.2]} 9... Qc7 {[%clk 0:02:49.3]} 10.
f4 {[%clk 0:02:25]} 10... Bc5+ {[%clk 0:02:42.7]} 11. Kh1 {[%clk 0:02:24.1]}
11... Ng4 {[%clk 0:02:38.7]} 12. fxe5 {[%clk 0:02:07.7]} 12... Be6 {[%clk
0:02:09.4]} 13. Bf4 {[%clk 0:01:42.8]} 13... O-O-O {[%clk 0:02:06.7]} 14. Qe2
{[%clk 0:01:14.7]} 14... Bxc4 {[%clk 0:01:32.8]} 15. Qxg4+ {[%clk 0:01:13.2]}
15... Be6 {[%clk 0:01:28.6]} 16. Qxg7 {[%clk 0:00:56.9]} 16... Rhg8 {[%clk
0:01:27.1]} 17. Qh6 {[%clk 0:00:55.7]} 17... Rg6 {[%clk 0:01:26.8]} 18. Qh4
{[%clk 0:00:40.7]} 18... Rdg8 {[%clk 0:01:26.7]} 19. Bg3 {[%clk 0:00:40.8]}
19... Be7 {[%clk 0:01:15.8]} 20. Qf4 {[%clk 0:00:38.1]} 20... h5 {[%clk
0:01:14]} 21. Rg1 {[%clk 0:00:35.5]} 21... h4 {[%clk 0:01:10.6]} 22. Bf2 {[%clk
0:00:32.2]} 22... Bg5 {[%clk 0:01:03.9]} 23. Qf3 {[%clk 0:00:29.3]} 23... Qxe5
{[%clk 0:01:03.9]} 24. Be3 {[%clk 0:00:24.2]} 24... Bxe3 {[%clk 0:01:01.2]} 25.
Qxe3 {[%clk 0:00:23.8]} 25... h3 {[%clk 0:01:01.6]} 26. gxh3 {[%clk 0:00:22.5]}
26... f5 {[%clk 0:00:56.5]} 27. Rxg6 {[%clk 0:00:11.5]} 27... Rxg6 {[%clk
0:00:54.7]} 28. Re1 {[%clk 0:00:09.2]} 28... f4 {[%clk 0:00:39]} 29. Qf3 {[%clk
0:00:08.2]} 29... Rh6 {[%clk 0:00:33.8]} 30. b3 {[%clk 0:00:07.1]} 30... Rxh3
{[%clk 0:00:33]} 31. Qf2 {[%clk 0:00:07.4]} 31... f3 {[%clk 0:00:31]} 32. Rg1
{[%clk 0:00:07.5]} 32... Qh5 {[%clk 0:00:22]} 33. a4 {[%clk 0:00:07.1]} 33...
Rh4 {[%clk 0:00:19.8]} 34. Rg3 {[%clk 0:00:06.7]} 34... Bg4 {[%clk 0:00:18.5]}
35. a5 {[%clk 0:00:05.6]} 35... Rh3 {[%clk 0:00:18.3]} 36. b4 {[%clk 0:00:05.5]}
36... Rxg3 {[%clk 0:00:17]} 37. Qxg3 {[%clk 0:00:05.4]} 37... Qg5 {[%clk
0:00:15]} 38. Kg1 {[%clk 0:00:05]} 38... Qc1+ {[%clk 0:00:14.8]} 39. Kf2 {[%clk
0:00:05.2]} 39... Qd2+ {[%clk 0:00:15.1]} 40. Kf1 {[%clk 0:00:05.5]} 40... Qc1+
{[%clk 0:00:08.7]} 41. Qe1 {[%clk 0:00:05.2]} 41... Qf4 {[%clk 0:00:08.9]} 42.
Qg3 {[%clk 0:00:04.5]} 42... Qc1+ {[%clk 0:00:08.4]} 43. Qe1 {[%clk 0:00:05]}
43... Qf4 {[%clk 0:00:08.3]} 44. Qg3 {[%clk 0:00:05.3]} 44... Qc1+ {[%clk
0:00:07.1]} 1/2-1/2

[Event "Early-Titled-Tuesday-Blitz-December-26-2023"]
[Site "Chess.com"]
[Date "2023.12.26"]
[Round "3"]
[White "Elsa167"]
[Black "Witik"]
[Result "1-0"]
[WhiteElo "2993"]
[BlackElo "2728"]
[TimeControl "180+1"]
[EndTime "8:27:55 PST"]
[Termination "Elsa167 won by checkmate"]

1. d4 {[%clk 0:03:00.9]} 1... Nf6 {[%clk 0:02:59.8]} 2. c4 {[%clk 0:03:00.8]}
2... e6 {[%clk 0:03:00.3]} 3. Nf3 {[%clk 0:03:01]} 3... b6 {[%clk 0:02:57]} 4.
Bf4 {[%clk 0:03:00.4]} 4... Bb7 {[%clk 0:02:53.1]} 5. e3 {[%clk 0:03:00.8]} 5...
Nh5 {[%clk 0:02:43.3]} 6. Bg5 {[%clk 0:02:55.4]} 6... Be7 {[%clk 0:02:29.3]} 7.
Bxe7 {[%clk 0:02:55.6]} 7... Qxe7 {[%clk 0:02:30.2]} 8. Nc3 {[%clk 0:02:56.2]}
8... Nf6 {[%clk 0:02:25.6]} 9. Be2 {[%clk 0:02:40.7]} 9... d6 {[%clk 0:02:23.3]}
10. O-O {[%clk 0:02:37.7]} 10... O-O {[%clk 0:02:19.4]} 11. b4 {[%clk
0:02:35.2]} 11... Nbd7 {[%clk 0:02:09.7]} 12. a3 {[%clk 0:02:30.4]} 12... c5
{[%clk 0:01:59.6]} 13. Qb3 {[%clk 0:02:21.1]} 13... Rfd8 {[%clk 0:01:57]} 14.
Rfd1 {[%clk 0:02:21]} 14... Rab8 {[%clk 0:01:51.4]} 15. Rd2 {[%clk 0:02:15.3]}
15... e5 {[%clk 0:01:15.4]} 16. dxc5 {[%clk 0:02:02.8]} 16... dxc5 {[%clk
0:01:13.1]} 17. Rad1 {[%clk 0:02:01.2]} 17... e4 {[%clk 0:01:08.6]} 18. Ng5
{[%clk 0:01:27.5]} 18... h6 {[%clk 0:00:58.4]} 19. Nh3 {[%clk 0:01:27.1]} 19...
g5 {[%clk 0:00:58.2]} 20. Nd5 {[%clk 0:01:09.5]} 20... Bxd5 {[%clk 0:00:50.5]}
21. cxd5 {[%clk 0:01:10.4]} 21... Qd6 {[%clk 0:00:48.1]} 22. Qa4 {[%clk
0:00:47.9]} 22... Ne5 {[%clk 0:00:39.4]} 23. bxc5 {[%clk 0:00:42.2]} 23... bxc5
{[%clk 0:00:39.5]} 24. Kh1 {[%clk 0:00:33.9]} 24... c4 {[%clk 0:00:31.4]} 25.
Bxc4 {[%clk 0:00:23.2]} 25... Neg4 {[%clk 0:00:31.3]} 26. g3 {[%clk 0:00:22.7]}
26... Rdc8 {[%clk 0:00:29.7]} 27. Be2 {[%clk 0:00:21.1]} 27... Rc3 {[%clk
0:00:28]} 28. Bxg4 {[%clk 0:00:21.1]} 28... Nxg4 {[%clk 0:00:26.7]} 29. Qxe4
{[%clk 0:00:21.7]} 29... Nf6 {[%clk 0:00:20.8]} 30. Qf5 {[%clk 0:00:18]} 30...
Rxa3 {[%clk 0:00:20.5]} 31. e4 {[%clk 0:00:18.4]} 31... Nd7 {[%clk 0:00:10.2]}
32. f4 {[%clk 0:00:18.6]} 32... Nf8 {[%clk 0:00:02.6]} 33. fxg5 {[%clk
0:00:16.1]} 33... Re3 {[%clk 0:00:01.9]} 34. gxh6 {[%clk 0:00:13.5]} 34... Qxh6
{[%clk 0:00:02.2]} 35. Nf4 {[%clk 0:00:13.2]} 35... Rbb3 {[%clk 0:00:01.9]} 36.
Nh5 {[%clk 0:00:07]} 36... Rf3 {[%clk 0:00:02]} 37. Qg4+ {[%clk 0:00:06.6]}
37... Ng6 {[%clk 0:00:02.5]} 38. d6 {[%clk 0:00:05.8]} 38... Rfe3 {[%clk
0:00:01.5]} 39. d7 {[%clk 0:00:06.1]} 39... Rb8 {[%clk 0:00:01.4]} 40. d8=Q+
{[%clk 0:00:06.6]} 40... Rxd8 {[%clk 0:00:02.3]} 41. Rxd8+ {[%clk 0:00:06.9]}
41... Kh7 {[%clk 0:00:03.2]} 42. Nf6+ {[%clk 0:00:07.1]} 42... Kg7 {[%clk
0:00:03.5]} 43. Rg8+ {[%clk 0:00:06.9]} 43... Kxf6 {[%clk 0:00:03.8]} 44. Qf5+
{[%clk 0:00:07.6]} 44... Ke7 {[%clk 0:00:03.6]} 45. Rd7# {[%clk 0:00:08.2]} 1-0

[Event "Early-Titled-Tuesday-Blitz-December-26-2023"]
[Site "Chess.com"]
[Date "2023.12.26"]
[Round "3"]
[White "nekotyanof"]
[Black "AlexanderL"]
[Result "0-1"]
[WhiteElo "2631"]
[BlackElo "2855"]
[TimeControl "180+1"]
[EndTime "8:28:02 PST"]
[Termination "AlexanderL won by resignation"]

1. e4 {[%clk 0:03:00.9]} 1... e6 {[%clk 0:03:00.9]} 2. d4 {[%clk 0:02:59.5]}
2... d5 {[%clk 0:02:56.5]} 3. Nd2 {[%clk 0:02:59.4]} 3... Nf6 {[%clk 0:02:53.8]}
4. e5 {[%clk 0:02:59.8]} 4... Nfd7 {[%clk 0:02:53.8]} 5. Ngf3 {[%clk 0:02:54.5]}
5... c5 {[%clk 0:02:48.9]} 6. c3 {[%clk 0:02:54.4]} 6... Nc6 {[%clk 0:02:47.3]}
7. Bd3 {[%clk 0:02:55.1]} 7... Qb6 {[%clk 0:02:31.9]} 8. O-O {[%clk 0:02:54.9]}
8... a5 {[%clk 0:02:27.8]} 9. Qa4 {[%clk 0:02:51.5]} 9... cxd4 {[%clk
0:02:24.3]} 10. cxd4 {[%clk 0:02:50.6]} 10... Qb4 {[%clk 0:02:23.1]} 11. Bb5
{[%clk 0:02:38.4]} 11... Qxa4 {[%clk 0:02:22.1]} 12. Bxa4 {[%clk 0:02:38.4]}
12... Nb6 {[%clk 0:02:19.5]} 13. Bb5 {[%clk 0:02:38.1]} 13... Bd7 {[%clk
0:02:19.9]} 14. a3 {[%clk 0:02:37.6]} 14... a4 {[%clk 0:02:13.7]} 15. Rd1 {[%clk
0:02:36.9]} 15... Na5 {[%clk 0:02:13.4]} 16. Bxd7+ {[%clk 0:02:36.1]} 16... Kxd7
{[%clk 0:02:13]} 17. Rb1 {[%clk 0:02:35.3]} 17... Nbc4 {[%clk 0:01:57.1]} 18. b4
{[%clk 0:02:32.2]} 18... axb3 {[%clk 0:01:52]} 19. Nxb3 {[%clk 0:02:32.1]} 19...
Nxb3 {[%clk 0:01:40.9]} 20. Rxb3 {[%clk 0:02:33]} 20... b6 {[%clk 0:01:41.3]}
21. Ng5 {[%clk 0:02:29.9]} 21... Ke8 {[%clk 0:01:40.6]} 22. Rf3 {[%clk
0:02:23.4]} 22... Ra7 {[%clk 0:01:38.9]} 23. Rdd3 {[%clk 0:02:22.3]} 23... h6
{[%clk 0:01:30.3]} 24. Nh3 {[%clk 0:02:22.4]} 24... Be7 {[%clk 0:01:23.8]} 25.
g3 {[%clk 0:02:08.4]} 25... g5 {[%clk 0:01:06.8]} 26. g4 {[%clk 0:02:08.5]}
26... Rf8 {[%clk 0:00:48.1]} 27. Kg2 {[%clk 0:02:07.3]} 27... Kd7 {[%clk
0:00:39.5]} 28. Ng1 {[%clk 0:02:07.1]} 28... f6 {[%clk 0:00:36.9]} 29. exf6
{[%clk 0:02:03.7]} 29... Rxf6 {[%clk 0:00:37.8]} 30. Rxf6 {[%clk 0:01:46.6]}
30... Bxf6 {[%clk 0:00:38.7]} 31. Ne2 {[%clk 0:01:47.5]} 31... Be7 {[%clk
0:00:34.5]} 32. h4 {[%clk 0:01:41]} 32... Bxa3 {[%clk 0:00:32.9]} 33. hxg5
{[%clk 0:01:07.8]} 33... Bxc1 {[%clk 0:00:31.5]} 34. Nxc1 {[%clk 0:01:08.7]}
34... hxg5 {[%clk 0:00:31.8]} 35. Rh3 {[%clk 0:01:06.5]} 35... Kd6 {[%clk
0:00:29.8]} 36. Rh5 {[%clk 0:01:04.2]} 36... Rg7 {[%clk 0:00:23.3]} 37. Nd3
{[%clk 0:01:03.4]} 37... b5 {[%clk 0:00:20.2]} 38. Kg3 {[%clk 0:01:04]} 38...
Nd2 {[%clk 0:00:19.4]} 39. f3 {[%clk 0:00:57.2]} 39... Nb3 {[%clk 0:00:18.9]}
40. Rh8 {[%clk 0:00:38.7]} 40... Nxd4 {[%clk 0:00:18.7]} 41. Rd8+ {[%clk
0:00:39.5]} 41... Kc7 {[%clk 0:00:18.9]} 42. Rf8 {[%clk 0:00:36.5]} 42... Nc6
{[%clk 0:00:17.4]} 43. f4 {[%clk 0:00:35.3]} 43... gxf4+ {[%clk 0:00:17.4]} 44.
Kxf4 {[%clk 0:00:36.2]} 44... Kd6 {[%clk 0:00:17.7]} 45. g5 {[%clk 0:00:35.7]}
45... e5+ {[%clk 0:00:17.2]} 46. Kg4 {[%clk 0:00:34.8]} 46... e4 {[%clk
0:00:17.7]} 47. Rf6+ {[%clk 0:00:34.5]} 47... Kc7 {[%clk 0:00:18.1]} 48. Nc5
{[%clk 0:00:34.6]} 48... Re7 {[%clk 0:00:15.5]} 49. g6 {[%clk 0:00:34.7]} 49...
e3 {[%clk 0:00:15.8]} 50. Rf7 {[%clk 0:00:31.1]} 50... Ne5+ {[%clk 0:00:15.2]}
51. Kf5 {[%clk 0:00:30.9]} 51... Nxf7 {[%clk 0:00:14.1]} 52. Kf6 {[%clk
0:00:31.2]} 52... Ne5 {[%clk 0:00:12.4]} 53. Kxe7 {[%clk 0:00:21.3]} 53... Nxg6+
{[%clk 0:00:12.4]} 54. Ke6 {[%clk 0:00:22.2]} 54... e2 {[%clk 0:00:12.2]} 55.
Nd3 {[%clk 0:00:21.8]} 55... Nf4+ {[%clk 0:00:12.4]} 56. Nxf4 {[%clk 0:00:22.1]}
0-1